fUST/lending_fUST_20241002
["ID","MTS","AMOUNT","RATE_DAILY","PERIOD"]
[339682265,1727861443208,-1000.0,0.000138,2]
[339682266,1727861443219,-1000.0,0.000138,2]
[339682267,1727861443230,-1000.0,0.000138,2]
[339682268,1727861443242,-1000.0,0.000138,2]
[339682269,1727861443254,-1000.0,0.000138,2]
[339682270,1727861443264,-1000.0,0.000138,2]
[339682272,1727861443275,-1000.0,0.000138,2]
[339682274,1727861443287,-1000.0,0.000138,2]
[339682276,1727861443297,-1000.0,0.000138,2]
[339682277,1727861443308,-1000.0,0.000138,2]
[339682278,1727861443318,-1000.0,0.000138,2]
[339682279,1727861443327,-1000.0,0.000138,2]
[339682280,1727861443337,-1000.0,0.000138,2]
[339682281,1727861443347,-1000.0,0.000138,2]
[339682282,1727861443356,-1000.0,0.000138,2]
[339682283,1727861443366,-1000.0,0.000138,2]
[339682284,1727861443375,-500.0,0.000138,2]
[339682285,1727861443385,-500.9391916,0.000138,2]
[339682286,1727861443395,-151.0,0.000138,2]
[339682287,1727861443406,-151.0,0.000138,2]
[339682288,1727861443416,-594.019486,0.000138,2]
[339682289,1727861443431,-594.019486,0.000138,2]
[339682290,1727861443442,-500.0,0.000138,2]
[339682291,1727861443453,-151.0,0.000138,2]
[339682292,1727861443463,-778.60534,0.000138,2]
[339682293,1727861443474,-778.60534,0.000138,2]
[339682294,1727861443485,-864.990204,0.000138,2]
[339682295,1727861443497,-2485.31,0.000138,2]
[339682296,1727861443507,-540.06327,0.000138,2]
[339682298,1727861443518,-864.990204,0.000138,2]
[339682299,1727861443527,-540.06327,0.000138,2]
[339682300,1727861443538,-161.857682,0.000138,2]
[339682301,1727861443547,-150.112233,0.000138,2]
[339682302,1727861443557,-150.112233,0.000138,2]
[339682303,1727861443567,-150.112233,0.000138,2]
[339682304,1727861443577,-940.94,0.000138,2]
[339682305,1727861443587,-161.857682,0.000138,2]
[339682306,1727861443597,-168.820583,0.000138,2]
[339682307,1727861443738,-168.820583,0.000138,2]
[339682308,1727861443749,-2179.201632,0.000138,2]
[339682309,1727861443758,-2179.201632,0.000138,2]
[339682310,1727861443768,-531.326526,0.000138,2]
[339682311,1727861443777,-531.326526,0.000138,2]
[339682312,1727861443787,-151.0,0.00013801,2]
[339682313,1727861443797,-151.0,0.00013801,2]
[339682314,1727861443806,-151.0,0.00013801,2]
[339682315,1727861443816,-151.0,0.00013801,2]
[339682316,1727861443827,-250.724897,0.00013801,2]
[339682317,1727861443837,-188.908512,0.00013801,2]
[339682318,1727861443847,-188.908512,0.00013801,2]
[339682319,1727861443857,-151.0,0.00013801,2]
[339682320,1727861443866,-151.0,0.00013801,2]
[339682321,1727861443876,-188.908512,0.00013801,2]
[339682322,1727861443887,-188.908512,0.00013801,2]
[339682323,1727861443896,-170.765089,0.00013801,2]
[339682324,1727861443906,-170.765089,0.00013801,2]
[339682325,1727861443915,-163.186356,0.00013801,2]
[339682326,1727861443925,-163.186356,0.00013801,2]
[339682327,1727861443935,-151.0,0.00013801,2]
[339682328,1727861443944,-383.017507,0.00013801,2]
[339682329,1727861443953,-383.017507,0.00013801,2]
[339682330,1727861443963,-151.0,0.00013801,2]
[339682331,1727861443972,-238.462394,0.00013801,2]
[339682332,1727861443983,-238.462394,0.00013801,2]
[339682333,1727861443993,-738.959929,0.00013801,2]
[339682334,1727861444002,-738.959929,0.00013801,2]
[339682335,1727861444012,-151.0,0.00013801,2]
[339682336,1727861444021,-778.60534,0.00013801,2]
[339682337,1727861444031,-778.60534,0.00013801,2]
[339682338,1727861444040,-540.06327,0.00013801,2]
[339682339,1727861444050,-540.06327,0.00013801,2]
[339682340,1727861444059,-500.0,0.00013809,2]
[339682341,1727861444068,-500.0,0.00013809,2]
[339682342,1727861444077,-500.0,0.00013809,2]
[339682343,1727861444087,-914.56,0.00013809,2]
[339682344,1727861444096,-914.56,0.00013809,2]
[339682345,1727861444105,-914.56,0.00013809,2]
[339682346,1727861444114,-168.820583,0.00013809,2]
[339682347,1727861444124,-168.820583,0.00013809,2]
[339682348,1727861444133,-2179.201632,0.00013809,2]
[339682349,1727861444143,-2179.201632,0.00013809,2]
[339682350,1727861444152,-531.326526,0.00013809,2]
[339682351,1727861444161,-531.326526,0.00013809,2]
[339682352,1727861444171,-500.0,0.0001381,2]
[339682353,1727861444180,-238.462394,0.0001381,2]
[339682354,1727861444189,-238.462394,0.0001381,2]
[339682355,1727861444199,-151.0,0.0001381,2]
[339682356,1727861444208,-792.710422,0.0001381,2]
[339682357,1727861444217,-792.710422,0.0001381,2]
[339682358,1727861444227,-151.0,0.0001381,2]
[339682359,1727861444239,-151.0,0.0001381,2]
[339682360,1727861444248,-151.0,0.0001381,2]
[339682361,1727861444258,-594.019486,0.0001381,2]
[339682362,1727861444267,-914.56,0.0001381,2]
[339682363,1727861444277,-594.019486,0.0001381,2]
[339682364,1727861444287,-864.990204,0.0001381,2]
[339682365,1727861444296,-864.990204,0.0001381,2]
[339682366,1727861444306,-161.857682,0.0001381,2]
[339682367,1727861444316,-161.857682,0.0001381,2]
[339682368,1727861444325,-151.0,0.00013811,2]
[339682369,1727861444335,-151.0,0.00013811,2]
[339682370,1727861444344,-151.0,0.00013811,2]
[339682371,1727861444353,-188.908512,0.00013811,2]
[339682372,1727861444363,-151.0,0.00013811,2]
[339682373,1727861444373,-188.908512,0.00013811,2]
[339682374,1727861444383,-955.55,0.00013811,2]
[339682375,1727861444393,-664.31,0.00013811,2]
[339682376,1727861444403,-170.765089,0.00013811,2]
[339682377,1727861444413,-170.765089,0.00013811,2]
[339682378,1727861444422,-163.186356,0.00013811,2]
[339682379,1727861444433,-163.186356,0.00013811,2]
[339682380,1727861444445,-500.0,0.00013811,2]
[339682381,1727861444455,-500.0,0.00013811,2]
[339682382,1727861444465,-515.49770384,0.00013811,2]
[339682383,1727861444475,-500.0,0.00013811,2]
[339682384,1727861444488,-500.0,0.00013811,2]
[339682385,1727861444505,-712.89,0.00013811,2]
[339682386,1727861444515,-500.0,0.00013811,2]
[339682387,1727861444525,-500.0,0.00013811,2]
[339682388,1727861444535,-500.0,0.00013811,2]
[339682389,1727861444545,-500.0,0.00013811,2]
[339682390,1727861444555,-500.0,0.00013811,2]
[339682391,1727861444565,-151.0,0.00013811,2]
[339682392,1727861444575,-500.0,0.00013811,2]
[339682393,1727861444585,-500.0,0.00013811,2]
[339682394,1727861444595,-500.0,0.00013811,2]
[339682395,1727861444606,-1063.02,0.00013811,2]
[339682396,1727861444616,-500.0,0.00013811,2]
[339682397,1727861444626,-500.0,0.00013811,2]
[339682398,1727861444636,-520.31,0.00013811,2]
[339682399,1727861444647,-383.017507,0.00013811,2]
[339682400,1727861444659,-383.017507,0.00013811,2]
[339682401,1727861444670,-151.0,0.00013811,2]
[339682402,1727861444682,-500.0,0.00013811,2]
[339682403,1727861444692,-500.0,0.00013811,2]
[339682404,1727861444702,-238.462394,0.00013811,2]
[339682405,1727861444714,-238.462394,0.00013811,2]
[339682406,1727861444726,-500.0,0.00013811,2]
[339682407,1727861444740,-500.0,0.00013811,2]
[339682408,1727861444750,-500.0,0.00013811,2]
[339682409,1727861444760,-500.0,0.00013811,2]
[339682410,1727861444771,-500.0,0.00013811,2]
[339682411,1727861444780,-500.0,0.00013811,2]
[339682412,1727861444791,-708.53,0.00013811,2]
[339682413,1727861444802,-151.0,0.00013811,2]
[339682414,1727861444812,-738.959929,0.00013811,2]
[339682415,1727861444822,-500.0,0.00013811,2]
[339682416,1727861444832,-738.959929,0.00013811,2]
[339682417,1727861444844,-151.0,0.00013811,2]
[339682418,1727861444854,-500.0,0.00013811,2]
[339682419,1727861444865,-151.0,0.00013811,2]
[339682420,1727861444875,-283.989756,0.00013811,2]
[339682421,1727861444886,-283.989756,0.00013811,2]
[339682422,1727861444896,-500.0,0.00013811,2]
[339682423,1727861444906,-191.508228,0.00013811,2]
[339682424,1727861444919,-191.508228,0.00013811,2]
[339682425,1727861444929,-500.0,0.00013811,2]
[339682426,1727861444939,-500.0,0.00013811,2]
[339682427,1727861444949,-500.0,0.00013811,2]
[339682428,1727861444958,-207.143533,0.00013811,2]
[339682429,1727861444968,-550.55,0.00013811,2]
[339682430,1727861444977,-374.77746415,0.00013811,2]
[339682431,1727861444989,-207.143533,0.00013811,2]
[339682432,1727861444998,-500.0,0.00013811,2]
[339682433,1727861445008,-292.031105,0.00013811,2]
[339682434,1727861445018,-500.0,0.00013811,2]
[339682435,1727861445027,-500.0,0.00013811,2]
[339682436,1727861445037,-500.0,0.00013811,2]
[339682437,1727861445046,-528.76,0.00013811,2]
[339682438,1727861445057,-500.0,0.00013811,2]
[339682439,1727861445067,-500.0,0.00013811,2]
[339682440,1727861445076,-500.0,0.00013811,2]
[339682441,1727861445085,-1006.91,0.00013811,2]
[339682442,1727861445095,-983.61,0.00013811,2]
[339682443,1727861445105,-500.0,0.00013811,2]
[339682444,1727861445114,-500.0,0.00013811,2]
[339682445,1727861445125,-1466.86,0.00013811,2]
[339682446,1727861445135,-500.0,0.00013811,2]
[339682447,1727861445144,-151.0,0.00013811,2]
[339682448,1727861445154,-778.60534,0.00013811,2]
[339682449,1727861445163,-500.0,0.00013811,2]
[339682450,1727861445173,-778.60534,0.00013811,2]
[339682451,1727861445182,-500.0,0.00013811,2]
[339682452,1727861445192,-500.0,0.00013811,2]
[339682453,1727861445201,-500.0,0.00013811,2]
[339682454,1727861445211,-500.0,0.00013811,2]
[339682455,1727861445220,-643.07,0.00013811,2]
[339682456,1727861445229,-540.06327,0.00013811,2]
[339682457,1727861445239,-540.06327,0.00013811,2]
[339682458,1727861445248,-500.0,0.00013811,2]
[339682459,1727861445258,-746.62,0.00013811,2]
[339682460,1727861445268,-1383.66,0.00013811,2]
[339682461,1727861445277,-548.13,0.00013811,2]
[339682462,1727861445286,-500.0,0.00013811,2]
[339682463,1727861445296,-760.66,0.00013811,2]
[339682464,1727861445305,-500.0,0.00013811,2]
[339682465,1727861445315,-338.43016805,0.00013819,2]
[339682466,1727861445324,-151.0,0.00013819,2]
[339682467,1727861445334,-188.908512,0.00013819,2]
[339682468,1727861445343,-151.0,0.00013819,2]
[339682469,1727861445353,-188.908512,0.00013819,2]
[339682470,1727861445362,-170.765089,0.00013819,2]
[339682471,1727861445372,-170.765089,0.00013819,2]
[339682472,1727861445382,-163.186356,0.00013819,2]
[339682473,1727861445393,-163.186356,0.00013819,2]
[339682474,1727861445404,-151.0,0.00013819,2]
[339682475,1727861445415,-604.502167,0.00013819,2]
[339682476,1727861445427,-383.017507,0.00013819,2]
[339682477,1727861445438,-383.017507,0.00013819,2]
[339682478,1727861445447,-151.0,0.00013819,2]
[339682479,1727861445458,-238.462394,0.00013819,2]
[339682480,1727861445470,-151.0,0.00013819,2]
[339682482,1727861445479,-238.462394,0.00013819,2]
[339682483,1727861445490,-792.710422,0.00013819,2]
[339682484,1727861445500,-792.710422,0.00013819,2]
[339682485,1727861445510,-738.959929,0.00013819,2]
[339682486,1727861445520,-738.959929,0.00013819,2]
[339682487,1727861445529,-152.224744,0.00013819,2]
[339682488,1727861445539,-151.0,0.00013819,2]
[339682489,1727861445549,-151.0,0.00013819,2]
[339682490,1727861445558,-594.019486,0.00013819,2]
[339682491,1727861445568,-914.56,0.00013819,2]
[339682492,1727861445578,-914.56,0.00013819,2]
[339682493,1727861445587,-914.56,0.00013819,2]
[339682494,1727861445597,-914.56,0.00013819,2]
[339682495,1727861445607,-594.019486,0.00013819,2]
[339682496,1727861445618,-864.990204,0.00013819,2]
[339682497,1727861445630,-864.990204,0.00013819,2]
[339682498,1727861445641,-161.857682,0.00013819,2]
[339682499,1727861445652,-161.857682,0.00013819,2]
[339682500,1727861445661,-168.820583,0.00013819,2]
[339682501,1727861445672,-168.820583,0.00013819,2]
[339682502,1727861445683,-2179.201632,0.00013819,2]
[339682503,1727861445695,-2179.201632,0.00013819,2]
[339682504,1727861445705,-531.326526,0.00013819,2]
[339682505,1727861445717,-531.326526,0.00013819,2]
[339682506,1727861445728,-151.0,0.0001382,2]
[339682507,1727861445739,-154.694939,0.0001382,2]
[339682508,1727861445750,-154.694939,0.0001382,2]
[339682509,1727861445760,-188.908512,0.0001382,2]
[339682511,1727861445770,-151.0,0.0001382,2]
[339682512,1727861445779,-188.908512,0.0001382,2]
[339682513,1727861445789,-170.765089,0.0001382,2]
[339682514,1727861445798,-170.765089,0.0001382,2]
[339682515,1727861445807,-170.765089,0.0001382,2]
[339682516,1727861445817,-170.765089,0.0001382,2]
[339682517,1727861445826,-163.186356,0.0001382,2]
[339682518,1727861445836,-163.186356,0.0001382,2]
[339682519,1727861445845,-163.186356,0.0001382,2]
[339682520,1727861445855,-163.186356,0.0001382,2]
[339682521,1727861445864,-500.0,0.0001382,2]
[339682522,1727861445874,-500.0,0.0001382,2]
[339682523,1727861445883,-218.57467793,0.0001382,2]
[339682524,1727861445893,-500.0,0.0001382,2]
[339682525,1727861445902,-500.0,0.0001382,2]
[339682526,1727861445912,-500.0,0.0001382,2]
[339682527,1727861445922,-500.0,0.0001382,2]
[339682528,1727861445932,-500.0,0.0001382,2]
[339682529,1727861445943,-500.0,0.0001382,2]
[339682530,1727861445953,-286.14749337,0.0001382,2]
[339682531,1727861445962,-152.311437,0.0001382,2]
[339682532,1727861445972,-604.502167,0.0001382,2]
[339682533,1727861445984,-604.502167,0.0001382,2]
[339682534,1727861445995,-894.399919,0.0001382,2]
[339682535,1727861446007,-894.399919,0.0001382,2]
[339682536,1727861446018,-383.017507,0.0001382,2]
[339682537,1727861446028,-383.017507,0.0001382,2]
[339682538,1727861446039,-383.017507,0.0001382,2]
[339682539,1727861446052,-383.017507,0.0001382,2]
[339682540,1727861446064,-151.0,0.0001382,2]
[339682541,1727861446074,-151.0,0.0001382,2]
[339682542,1727861446084,-238.462394,0.0001382,2]
[339682543,1727861446094,-238.462394,0.0001382,2]
[339682544,1727861446104,-238.462394,0.0001382,2]
[339682545,1727861446115,-238.462398,0.0001382,2]
[339682546,1727861446125,-500.0,0.0001382,2]
[339682547,1727861446136,-500.0,0.0001382,2]
[339682548,1727861446146,-500.0,0.0001382,2]
[339682549,1727861446156,-500.0,0.0001382,2]
[339682550,1727861446166,-25.29282602,0.0001382,2]
[339682551,1727861446677,-1005.97098223,0.00013698,2]
[339682552,1727861446689,-537.00901777,0.00013698,2]
[339682553,1727861446699,-500.0,0.00013698,2]
[339682554,1727861446709,-500.0,0.00013698,2]
[339682555,1727861446719,-516.04197829,0.00013698,2]
[339682556,1727861446728,-500.0,0.00013811,2]
[339682557,1727861446739,-474.70717398,0.0001382,2]
[339682558,1727861446748,-500.0,0.0001382,2]
[339682559,1727861446757,-500.0,0.0001382,2]
[339682560,1727861446767,-500.0,0.0001382,2]
[339682561,1727861446777,-500.0,0.0001382,2]
[339682562,1727861446787,-500.0,0.0001382,2]
[339682563,1727861446796,-500.0,0.0001382,2]
[339682564,1727861446806,-132.24182995,0.0001382,2]
[339682625,1727862632386,-194.83,0.00010959,2]
[339682627,1727862632399,-300.0,0.00012531,2]
[339682629,1727862632410,-300.0,0.00012531,2]
[339682630,1727862632420,-5335.47,0.00012532,2]
[339682632,1727862632432,-4526.430238,0.00012532,2]
[339682685,1727862638414,-8728.56211831,0.00012532,2]
[339682691,1727862641404,-6309.53764369,0.00012532,2]
[339682692,1727862641414,-97.06235631,0.00012629,2]
[339682693,1727862641499,-608.09844309,0.00012629,2]
[339682694,1727862641509,-188.77623633,0.00013568,2]
[339682695,1727862641519,-188.7762363,0.00013571,2]
[339682696,1727862641529,-188.7762363,0.00013573,2]
[339682697,1727862641539,-188.7762363,0.00013576,2]
[339682698,1727862641548,-188.7762363,0.00013578,2]
[339682699,1727862641558,-1000.0,0.00013588,2]
[339682700,1727862641568,-193.26981215,0.00013597,2]
[339682701,1727862641578,-482.38780283,0.00013597,2]
[339682702,1727862641589,-1026.70363971,0.00013598,2]
[339682703,1727862641599,-4092.12219774,0.00013625,2]
[339682704,1727862641610,-40559.2686671,0.00013668,2]
[339682705,1727862641622,-24608.0583392,0.00013668,2]
[339682706,1727862641633,-500.0,0.00013673,2]
[339682707,1727862641643,-500.0,0.00013673,2]
[339682708,1727862641654,-500.0,0.00013673,2]
[339682709,1727862641676,-500.0,0.00013673,2]
[339682710,1727862641687,-500.08995096,0.00013673,2]
[339682711,1727862641697,-500.0,0.00013673,2]
[339682712,1727862641709,-500.0,0.00013673,2]
[339682713,1727862641719,-201.47085096,0.00013673,2]
[339682714,1727862641730,-500.0,0.00013673,2]
[339682715,1727862641741,-501.17497356,0.00013673,2]
[339682716,1727862641751,-500.34128355,0.00013673,2]
[339682717,1727862641761,-648.044761,0.00013673,2]
[339682718,1727862641771,-500.0,0.00013673,2]
[339682719,1727862641780,-243355.612003,0.00013678,2]
[339682720,1727862641790,-42454.67067443,0.00013678,2]
[339682785,1727862646324,-231.62679973,0.00013598,2]
[339682786,1727862646334,-504.8254653,0.00013673,2]
[339682787,1727862646344,-500.0,0.00013673,2]
[339682788,1727862646354,-5174.04773497,0.00013678,2]
[339682789,1727862646367,-747.57823519,0.00013678,2]
[339683245,1727863618099,-175.347,0.00012552,2]
[339683272,1727863832457,-30.09636436,0.00012552,2]
[339683274,1727863832469,-223.86177517,0.00012622,2]
[339683350,1727863838469,-5001.22282055,0.00012622,2]
[339683353,1727863838481,-2909.64850367,0.00012622,2]
[339685954,1727864379865,3000.0,0.00021,60]
[339685955,1727864530111,1012.63788045,0.00021,60]
[339685956,1727864722651,-1337.9729513,0.00011946,2]
[339685957,1727864729769,-999.9977842,0.00011955,2]
[339686065,1727865040476,-236.33,0.00010959,2]
[339686067,1727865040486,-221.920975,0.00012398,2]
[339686068,1727865040495,-176.839025,0.00012432,2]
[339686086,1727865044283,-45.08195,0.00012432,2]
[339686087,1727865044292,-221.920975,0.00012466,2]
[339686088,1727865044302,-221.920975,0.000125,2]
[339686089,1727865044311,-303.8063647,0.00012519,2]
[339686090,1727865044321,-221.920975,0.00012534,2]
[339686091,1727865044330,-221.920975,0.00012568,2]
[339686092,1727865044340,-221.920975,0.00012602,2]
[339686093,1727865044349,-221.920975,0.00012636,2]
[339686094,1727865044359,-221.920975,0.0001267,2]
[339686095,1727865044374,-221.920975,0.00012704,2]
[339686096,1727865044385,-221.920975,0.00012738,2]
[339686097,1727865044395,-221.920975,0.00012772,2]
[339686098,1727865044407,-221.920975,0.00012806,2]
[339686099,1727865044417,-221.920975,0.0001284,2]
[339686100,1727865044438,-221.920975,0.00012874,2]
[339686101,1727865044458,-153.1280981,0.00012878,2]
[339686102,1727865044476,-153.0,0.00012878,2]
[339686103,1727865044496,-153.0,0.00012878,2]
[339686104,1727865044517,-221.920975,0.00012908,2]
[339686105,1727865044541,-221.920975,0.00012942,2]
[339686106,1727865044560,-221.920975,0.00012976,2]
[339686107,1727865044577,-1000.0,0.00013,8]
[339686108,1727865044595,-221.920975,0.0001301,2]
[339686109,1727865044616,-300.0,0.00013044,2]
[339686110,1727865044637,-300.0,0.00013044,2]
[339686111,1727865044650,-221.920975,0.00013044,2]
[339686112,1727865044668,-3128.7060372,0.00013498,2]
[339686121,1727865406241,2000.0,0.00021,60]
[339686122,1727865517934,2000.0,0.00021,60]
[339686123,1727865532081,2000.0,0.00021,60]
[339686125,1727865771172,622.9586223,0.00021,60]
[339686127,1727866207543,2000.0,0.00021,60]
[339686128,1727866216120,500.0,0.00021,60]
[339686159,1727866231904,-992.25,0.00012168,2]
[339686160,1727866231914,-186.5734379,0.00012467,2]
[339686161,1727866231924,-410.4265621,0.00012504,2]
[339686178,1727866237727,-2828.28026812,0.00012504,2]
[339686180,1727866237737,-300.0,0.00012999,2]
[339686182,1727866237747,-300.0,0.00012999,2]
[339686184,1727866237756,-859.66019918,0.00013,2]
[339686186,1727866237766,-26915.09903573,0.00013,2]
[339686188,1727866237776,-7193.10270582,0.0001317,2]
[339686190,1727866237792,-168.93832688,0.00013451,2]
[339686192,1727866237808,-168.93832686,0.00013456,2]
[339686194,1727866237819,-168.93832686,0.00013461,2]
[339686196,1727866237828,-1000.0,0.00013488,2]
[339686198,1727866237838,-500.0,0.0001355,2]
[339686201,1727866237849,-500.0,0.0001355,2]
[339686203,1727866237858,-500.0,0.0001355,2]
[339686205,1727866237867,-500.0,0.0001355,2]
[339686207,1727866237878,-500.0,0.0001355,2]
[339686209,1727866237888,-500.0,0.0001355,2]
[339686211,1727866237899,-500.0,0.0001355,2]
[339686213,1727866237911,-500.0,0.0001355,2]
[339686215,1727866237921,-500.0,0.0001355,2]
[339686218,1727866237932,-500.0,0.0001355,2]
[339686220,1727866237942,-500.0,0.0001355,2]
[339686222,1727866237951,-500.0,0.0001355,2]
[339686224,1727866237961,-500.0,0.0001355,2]
[339686226,1727866237971,-500.0,0.0001355,2]
[339686228,1727866237981,-500.0,0.0001355,2]
[339686230,1727866237994,-500.0,0.0001355,2]
[339686232,1727866238004,-500.0,0.0001355,2]
[339686234,1727866238016,-53616.9327142,0.00013551,2]
[339686236,1727866238026,-60582.018397,0.00013551,2]
[339686238,1727866238036,-328.44420002,0.00013552,2]
[339686240,1727866238047,-500.0,0.00013552,2]
[339686241,1727866238059,-89580.43617388,0.00013561,2]
[339686242,1727866238069,-151.0,0.00013561,2]
[339686244,1727866238081,-151.0,0.00013561,2]
[339686246,1727866238091,-151.0,0.00013561,2]
[339686247,1727866238103,-1226.636147,0.00013561,2]
[339686248,1727866238113,-1226.636147,0.00013561,2]
[339686249,1727866238124,-151.0,0.00013561,2]
[339686250,1727866238135,-151.0,0.00013561,2]
[339686251,1727866238144,-635.753629,0.00013561,2]
[339686252,1727866238155,-635.753629,0.00013561,2]
[339686253,1727866238167,-668.80636,0.00013561,2]
[339686254,1727866238177,-668.80636,0.00013561,2]
[339686255,1727866238189,-2613.202465,0.00013561,2]
[339686256,1727866238202,-2613.202465,0.00013561,2]
[339686257,1727866238213,-1470.416508,0.00013561,2]
[339686258,1727866238223,-154.830723,0.00013561,2]
[339686259,1727866238233,-12270.74906477,0.00013561,2]
[339686260,1727866238244,-1470.416508,0.00013561,2]
[339686261,1727866238253,-265.100966,0.00013561,2]
[339686262,1727866238264,-265.100966,0.00013561,2]
[339686263,1727866238275,-151.0,0.00013561,2]
[339686264,1727866238292,-1162.624606,0.00013561,2]
[339686265,1727866238303,-1162.624606,0.00013561,2]
[339686266,1727866238312,-151.0,0.00013561,2]
[339686267,1727866238323,-239.034558,0.00013561,2]
[339686268,1727866238332,-239.034558,0.00013561,2]
[339686269,1727866238343,-1679.705179,0.00013561,2]
[339686270,1727866238354,-151.0,0.00013561,2]
[339686271,1727866238364,-151.0,0.00013561,2]
[339686272,1727866238374,-254.856236,0.00013561,2]
[339686273,1727866238385,-1679.705179,0.00013561,2]
[339686274,1727866238396,-254.856236,0.00013561,2]
[339686275,1727866238408,-151.0,0.00013561,2]
[339686276,1727866238421,-780.699725,0.00013561,2]
[339686277,1727866238432,-356.411692,0.00013561,2]
[339686278,1727866238443,-780.699725,0.00013561,2]
[339686279,1727866238453,-356.411692,0.00013561,2]
[339686280,1727866238464,-151.0,0.00013561,2]
[339686281,1727866238475,-151.0,0.00013561,2]
[339686282,1727866238485,-234.445441,0.00013561,2]
[339686283,1727866238495,-454.584651,0.00013561,2]
[339686284,1727866238506,-151.0,0.00013561,2]
[339686285,1727866238516,-454.584651,0.00013561,2]
[339686286,1727866238528,-151.0,0.00013561,2]
[339686287,1727866238540,-151.0,0.00013561,2]
[339686288,1727866238549,-151.0,0.00013561,2]
[339686289,1727866238559,-1053.64442034,0.00013567,2]
[339686290,1727866238569,-151.0,0.0001358,2]
[339686291,1727866238580,-151.0,0.0001358,2]
[339686292,1727866238590,-151.0,0.0001358,2]
[339686293,1727866238600,-246.260019,0.0001358,2]
[339686294,1727866238611,-151.0,0.0001358,2]
[339686295,1727866238621,-284.237312,0.0001358,2]
[339686296,1727866238631,-151.0,0.0001358,2]
[339686297,1727866238644,-151.0,0.0001358,2]
[339686298,1727866238654,-595.137206,0.0001358,2]
[339686299,1727866238664,-168.60749,0.0001358,2]
[339686300,1727866238674,-595.137206,0.0001358,2]
[339686301,1727866238683,-179.8112,0.0001358,2]
[339686302,1727866238693,-168.60749,0.0001358,2]
[339686303,1727866238703,-246.233203,0.0001358,2]
[339686304,1727866238713,-179.8112,0.0001358,2]
[339686305,1727866238722,-246.233203,0.0001358,2]
[339686306,1727866238733,-151.0,0.0001358,2]
[339686307,1727866238742,-151.0,0.0001358,2]
[339686308,1727866238752,-239.034558,0.0001358,2]
[339686309,1727866238762,-239.034558,0.0001358,2]
[339686310,1727866238772,-1679.705179,0.0001358,2]
[339686311,1727866238782,-151.0,0.0001358,2]
[339686312,1727866238792,-254.856236,0.0001358,2]
[339686313,1727866238802,-151.0,0.0001358,2]
[339686314,1727866238812,-1679.705179,0.0001358,2]
[339686315,1727866238822,-254.856236,0.0001358,2]
[339686316,1727866238832,-151.0,0.0001358,2]
[339686317,1727866238841,-780.699725,0.0001358,2]
[339686318,1727866238851,-356.411692,0.0001358,2]
[339686319,1727866238860,-780.699725,0.0001358,2]
[339686320,1727866238871,-356.411692,0.0001358,2]
[339686321,1727866238880,-151.0,0.0001358,2]
[339686322,1727866238890,-454.584651,0.0001358,2]
[339686323,1727866238900,-151.0,0.0001358,2]
[339686324,1727866238910,-454.584651,0.0001358,2]
[339686325,1727866238920,-151.0,0.0001358,2]
[339686326,1727866238929,-151.0,0.0001358,2]
[339686327,1727866238939,-151.0,0.0001358,2]
[339686328,1727866238949,-16610.12606641,0.0001358,2]